fUSD/lending_fUSD_20240104
["ID","MTS","AMOUNT","RATE_DAILY","PERIOD"]
[310216727,1704402662633,-500.0,0.00033424,2]
[310216728,1704402662641,-738.09,0.00033424,2]
[310216729,1704402662651,-519.11,0.00033424,2]
[310216730,1704402662660,-500.0,0.00033424,2]
[310216731,1704402662670,-500.0,0.00033424,2]
[310216732,1704402662679,-436.02271126,0.00033424,2]
[310216733,1704402662690,-500.0,0.00033424,2]
[310216734,1704402662701,-500.0,0.00033424,2]
[310216735,1704402662713,-754.73,0.00033424,2]
[310216736,1704402662722,-500.0,0.00033424,2]
[310216737,1704402662731,-500.0,0.00033424,2]
[310216738,1704402662742,-500.0,0.00033424,2]
[310216739,1704402662753,-500.0,0.00033424,2]
[310216740,1704402662766,-500.0,0.00033424,2]
[310216741,1704402662776,-500.0,0.00033424,2]
[310216742,1704402662786,-500.0,0.00033424,2]
[310216743,1704402662797,-578.29,0.00033424,2]
[310216744,1704402662807,-500.0,0.00033424,2]
[310216745,1704402662818,-500.0,0.00033424,2]
[310216746,1704402662827,-500.0,0.00033424,2]
[310216747,1704402662836,-500.0,0.00033424,2]
[310216748,1704402662846,-500.0,0.00033424,2]
[310216749,1704402662855,-947.06,0.00033424,2]
[310216750,1704402662864,-500.0,0.00033424,2]
[310216751,1704402662874,-500.0,0.00033424,2]
[310216752,1704402662885,-500.0,0.00033424,2]
[310216753,1704402662894,-1076.04,0.00033424,2]
[310216754,1704402662904,-500.0,0.00033424,2]
[310216755,1704402662913,-541.45,0.00033424,2]
[310216756,1704402662922,-500.0,0.00033424,2]
[310216757,1704402662933,-519.94,0.00033424,2]
[310216758,1704402662943,-500.0,0.00033424,2]
[310216759,1704402662952,-500.0,0.00033424,2]
[310216760,1704402662962,-500.0,0.00033424,2]
[310216761,1704402662972,-500.0,0.00033424,2]
[310216762,1704402662981,-500.0,0.00033424,2]
[310216763,1704402662992,-570.54,0.00033424,2]
[310216764,1704402663001,-596.45,0.00033424,2]
[310216765,1704402663011,-500.0,0.00033424,2]
[310216766,1704402663020,-500.0,0.00033424,2]
[310216767,1704402663029,-500.0,0.00033424,2]
[310216768,1704402663038,-500.0,0.00033424,2]
[310216769,1704402663047,-917.54,0.00033424,2]
[310216770,1704402663056,-543.015075,0.00033424,2]
[310216771,1704402663066,-500.0,0.00033424,2]
[310216772,1704402663075,-500.0,0.00033424,2]
[310216773,1704402663084,-500.0,0.00033424,2]
[310216774,1704402663093,-617.98061877,0.00033424,2]
[310216775,1704402663102,-500.0,0.00033424,2]
[310216776,1704402663111,-500.0,0.00033424,2]
[310216777,1704402663120,-500.0,0.00033424,2]
[310216778,1704402663130,-500.0,0.00033424,2]
[310216779,1704402663138,-500.0,0.00033424,2]
[310216780,1704402663147,-639.13,0.00033424,2]
[310216781,1704402663157,-500.0,0.00033424,2]
[310216782,1704402663166,-500.0,0.00033424,2]
[310216783,1704402663175,-500.0,0.00033424,2]
[310216784,1704402663184,-500.0,0.00033424,2]
[310216785,1704402663193,-500.0,0.00033424,2]
[310216786,1704402663202,-500.0,0.00033424,2]
[310216787,1704402663212,-500.0,0.00033424,2]
[310216788,1704402663221,-774.28,0.00033424,2]
[310216789,1704402663230,-500.0,0.00033424,2]
[310216790,1704402663239,-642.46,0.00033424,2]
[310216791,1704402663248,-500.0,0.00033424,2]
[310216792,1704402663257,-500.0,0.00033424,2]
[310216793,1704402663267,-665.84,0.00033424,2]
[310216794,1704402663278,-500.0,0.00033424,2]
[310216795,1704402663287,-323.82,0.00033424,2]
[310216796,1704402663296,-500.0,0.00033424,2]
[310216797,1704402663305,-500.0,0.00033424,2]
[310216798,1704402663315,-500.0,0.00033424,2]
[310216799,1704402663324,-500.0,0.00033424,2]
[310216800,1704402663334,-538.80463763,0.00033424,2]
[310216801,1704402663343,-500.0,0.00033424,2]
[310216802,1704402663353,-500.0,0.00033424,2]
[310216803,1704402663364,-500.0,0.00033424,2]
[310216804,1704402663375,-306.03227159,0.00033424,2]
[310216805,1704402663384,-500.0,0.00033424,2]
[310216806,1704402663396,-500.0,0.00033424,2]
[310216807,1704402663408,-500.0,0.00033424,2]
[310216808,1704402663418,-500.0,0.00033424,2]
[310216809,1704402663427,-500.0,0.00033424,2]
[310216810,1704402663437,-500.0,0.00033424,2]
[310216811,1704402663447,-500.0,0.00033424,2]
[310216812,1704402663458,-500.0,0.00033424,2]
[310216813,1704402663467,-500.0,0.00033424,2]
[310216814,1704402663476,-500.0,0.00033424,2]
[310216815,1704402663485,-500.0,0.00033424,2]
[310216816,1704402663494,-500.0,0.00033424,2]
[310216817,1704402663504,-491.24401583,0.00033424,2]
[310216818,1704402663513,-500.0,0.00033424,2]
[310216819,1704402663522,-500.0,0.00033424,2]
[310216820,1704402663532,-564.52,0.00033424,2]
[310216821,1704402663542,-534.18,0.00033424,2]
[310216822,1704402663551,-500.0,0.00033424,2]
[310216823,1704402663561,-520.83,0.00033424,2]
[310216824,1704402663570,-1863.96,0.00033424,2]
[310216825,1704402663581,-500.0,0.00033424,2]
[310216826,1704402663590,-500.0,0.00033424,2]
[310216827,1704402663599,-500.0,0.00033424,2]
[310216828,1704402663608,-500.0,0.00033424,2]
[310216829,1704402663618,-500.0,0.00033424,2]
[310216830,1704402663628,-500.0,0.00033424,2]
[310216831,1704402663637,-533.03,0.00033424,2]
[310216832,1704402663646,-500.0,0.00033424,2]
[310216833,1704402663656,-1044.47,0.00033424,2]
[310216834,1704402663665,-531.47,0.00033424,2]
[310216835,1704402663674,-500.0,0.00033424,2]
[310216836,1704402663683,-564.43,0.00033424,2]
[310216837,1704402663692,-1039.05,0.00033424,2]
[310216838,1704402663701,-791.55,0.00033424,2]
[310216839,1704402663712,-500.0,0.00033424,2]
[310216840,1704402663721,-1245.41,0.00033424,2]
[310216841,1704402663730,-252.74638701,0.00033424,2]
[310216842,1704402663739,-500.0,0.00033424,2]
[310216843,1704402663750,-500.0,0.00033424,2]
[310216844,1704402663759,-1028.36,0.00033424,2]
[310216845,1704402663768,-500.0,0.00033424,2]
[310216846,1704402663777,-500.0,0.00033424,2]
[310216847,1704402663786,-500.0,0.00033424,2]
[310216848,1704402663795,-757.45,0.00033424,2]
[310216849,1704402663804,-521.07,0.00033424,2]
[310216850,1704402663814,-500.0,0.00033424,2]
[310216851,1704402663823,-500.0,0.00033424,2]
[310216852,1704402663832,-162.01,0.00033424,2]
[310216853,1704402663841,-500.0,0.00033424,2]
[310216854,1704402663850,-512.01324294,0.00033424,2]
[310216855,1704402663860,-500.0,0.00033424,2]
[310216856,1704402663869,-663.54,0.00033424,2]
[310216857,1704402663878,-500.0,0.00033424,2]
[310216858,1704402663887,-988.41,0.00033424,2]
[310216859,1704402663897,-500.0,0.00033424,2]
[310216860,1704402663907,-500.0,0.00033424,2]
[310216861,1704402663918,-1253.45,0.00033424,2]
[310216862,1704402663927,-623.24,0.00033424,2]
[310216863,1704402663937,-500.0,0.00033424,2]
[310216864,1704402663946,-1071.01,0.00033424,2]
[310216865,1704402663956,-500.0,0.00033424,2]
[310216866,1704402663965,-500.0,0.00033424,2]
[310216867,1704402663975,-1080.17,0.00033424,2]
[310216868,1704402663983,-500.0,0.00033424,2]
[310216869,1704402663993,-500.0,0.00033424,2]
[310216870,1704402664004,-500.0,0.00033424,2]
[310216871,1704402664013,-2123.54,0.00033424,2]
[310216872,1704402664022,-1443.74,0.00033424,2]
[310216873,1704402664031,-500.0,0.00033424,2]
[310216874,1704402664040,-765.81,0.00033424,2]
[310216875,1704402664049,-500.0,0.00033424,2]
[310216876,1704402664058,-500.0,0.00033424,2]
[310216877,1704402664067,-500.0,0.00033424,2]
[310216878,1704402664077,-500.0,0.00033424,2]
[310216879,1704402664086,-500.0,0.00033424,2]
[310216880,1704402664095,-500.0,0.00033424,2]
[310216881,1704402664105,-500.0,0.00033424,2]
[310216882,1704402664115,-1276.68,0.00033424,2]
[310216883,1704402664124,-500.0,0.00033424,2]
[310216884,1704402664133,-500.0,0.00033424,2]
[310216885,1704402664143,-500.0,0.00033424,2]
[310216886,1704402664154,-500.0,0.00033424,2]
[310216887,1704402664164,-1183.54,0.00033424,2]
[310216888,1704402664173,-500.0,0.00033424,2]
[310216889,1704402664183,-574.19175104,0.00033424,2]
[310216890,1704402664192,-500.0,0.00033424,2]
[310216891,1704402664202,-500.0,0.00033424,2]
[310216892,1704402664212,-2290.92,0.00033424,2]
[310216893,1704402664222,-500.0,0.00033424,2]
[310216894,1704402664231,-5464.43,0.00033424,2]
[310216895,1704402664241,-543.96,0.00033424,2]
[310216896,1704402664251,-1286.86,0.00033424,2]
[310216897,1704402664260,-500.0,0.00033424,2]
[310216898,1704402664270,-623.16,0.00033424,2]
[310216899,1704402664279,-500.0,0.00033424,2]
[310216900,1704402664287,-500.0,0.00033424,2]
[310216901,1704402664297,-1530.15,0.00033424,2]
[310216902,1704402664306,-2181.99,0.00033424,2]
[310216903,1704402664315,-500.0,0.00033424,2]
[310216904,1704402664324,-500.0,0.00033424,2]
[310216905,1704402664334,-3262.68,0.00033424,2]
[310216906,1704402664343,-500.0,0.00033424,2]
[310216907,1704402664352,-1391.97,0.00033424,2]
[310216908,1704402664361,-500.0,0.00033424,2]
[310216909,1704402664370,-500.0,0.00033424,2]
[310216910,1704402664380,-756.79,0.00033424,2]
[310216911,1704402664389,-618.7,0.00033424,2]
[310216912,1704402664398,-1812.71,0.00033424,2]
[310216913,1704402664407,-500.0,0.00033424,2]
[310216914,1704402664416,-500.0,0.00033424,2]
[310216915,1704402664425,-500.0,0.00033424,2]
[310216916,1704402664434,-500.0,0.00033424,2]
[310216917,1704402664443,-500.0,0.00033424,2]
[310216918,1704402664453,-500.0,0.00033424,2]
[310216919,1704402664463,-350.0,0.00033424,2]
[310216920,1704402664472,-500.0,0.00033424,2]
[310216921,1704402664481,-927.7,0.00033424,2]
[310216922,1704402664490,-709.7,0.00033424,2]
[310216923,1704402664499,-500.0,0.00033424,2]
[310216924,1704402664509,-1742.56,0.00033424,2]
[310216925,1704402664518,-500.0,0.00033424,2]
[310216926,1704402664528,-500.0,0.00033424,2]
[310216927,1704402664537,-7042.65,0.00033424,2]
[310216928,1704402664546,-500.0,0.00033424,2]
[310216929,1704402664555,-500.0,0.00033424,2]
[310216930,1704402664564,-500.0,0.00033424,2]
[310216931,1704402664573,-500.0,0.00033424,2]
[310216932,1704402664582,-500.0,0.00033424,2]
[310216933,1704402664591,-500.0,0.00033424,2]
[310216934,1704402664600,-500.0,0.00033424,2]
[310216935,1704402664609,-500.0,0.00033424,2]
[310216936,1704402664619,-508.33,0.00033424,2]
[310216937,1704402664630,-910.81,0.00033424,2]
[310216938,1704402664639,-500.0,0.00033424,2]
[310216939,1704402664649,-500.0,0.00033424,2]
[310216940,1704402664658,-500.0,0.00033424,2]
[310216941,1704402664667,-500.0,0.00033424,2]
[310216942,1704402664676,-1009.55,0.00033424,2]
[310216943,1704402664685,-500.0,0.00033424,2]
[310216944,1704402664695,-500.0,0.00033424,2]
[310216945,1704402664704,-1739.77,0.00033424,2]
[310216946,1704402664716,-500.0,0.00033424,2]
[310216947,1704402664725,-500.0,0.00033424,2]
[310216948,1704402664735,-500.0,0.00033424,2]
[310216949,1704402664745,-500.0,0.00033424,2]
[310216950,1704402664754,-500.0,0.00033424,2]
[310216951,1704402664763,-1282.1,0.00033424,2]
[310216952,1704402664773,-500.0,0.00033424,2]
[310216953,1704402664782,-500.0,0.00033424,2]
[310216954,1704402664791,-500.0,0.00033424,2]
[310216955,1704402664800,-6408.05,0.00033424,2]
[310216956,1704402664810,-500.0,0.00033424,2]
[310216957,1704402664819,-2129.19,0.00033424,2]
[310216958,1704402664828,-1154.96,0.00033424,2]
[310216959,1704402664837,-500.0,0.00033424,2]
[310216960,1704402664847,-1729.84,0.00033424,2]
[310216961,1704402664856,-500.0,0.00033424,2]
[310216962,1704402664865,-500.0,0.00033424,2]
[310216963,1704402664874,-500.0,0.00033424,2]
[310216964,1704402664883,-500.0,0.00033424,2]
[310216965,1704402664893,-500.0,0.00033424,2]
[310216966,1704402664901,-500.0,0.00033424,2]
[310216967,1704402664910,-913.73,0.00033424,2]
[310216968,1704402664919,-500.0,0.00033424,2]
[310216969,1704402664930,-500.0,0.00033424,2]
[310216970,1704402664940,-2264.53,0.00033424,2]
[310216971,1704402664950,-500.0,0.00033424,2]
[310216972,1704402664961,-4842.28,0.00033424,2]
[310216973,1704402664971,-500.0,0.00033424,2]
[310216974,1704402664981,-500.0,0.00033424,2]
[310216975,1704402664990,-455.67572597,0.00033424,2]
[310216976,1704402664999,-500.0,0.00033424,2]
[310216977,1704402665009,-500.0,0.00033424,2]
[310216978,1704402665018,-2281.55,0.00033424,2]
[310216979,1704402665027,-500.0,0.00033424,2]
[310216980,1704402665037,-500.0,0.00033424,2]
[310216981,1704402665046,-500.0,0.00033424,2]
[310216982,1704402665055,-500.0,0.00033424,2]
[310216983,1704402665065,-500.0,0.00033424,2]
[310216984,1704402665074,-500.0,0.00033424,2]
[310216985,1704402665083,-500.0,0.00033424,2]
[310216986,1704402665093,-500.0,0.00033424,2]
[310216987,1704402665103,-500.0,0.00033424,2]
[310216988,1704402665112,-500.0,0.00033424,2]
[310216989,1704402665121,-500.0,0.00033424,2]
[310216990,1704402665131,-500.0,0.00033424,2]
[310216991,1704402665140,-500.0,0.00033424,2]
[310216992,1704402665150,-500.0,0.00033424,2]
[310216993,1704402665159,-983.89,0.00033424,2]
[310216994,1704402665169,-539.42,0.00033424,2]
[310216995,1704402665179,-500.0,0.00033424,2]
[310216996,1704402665188,-500.0,0.00033424,2]
[310216997,1704402665197,-500.0,0.00033424,2]
[310216998,1704402665207,-500.0,0.00033424,2]
[310216999,1704402665219,-500.0,0.00033424,2]
[310217000,1704402665229,-396.67,0.00033424,2]
[310217001,1704402665238,-500.0,0.00033424,2]
[310217002,1704402665247,-500.0,0.00033424,2]
[310217003,1704402665256,-500.0,0.00033424,2]
[310217004,1704402665267,-1154.67,0.00033424,2]
[310217005,1704402665278,-500.0,0.00033424,2]
[310217006,1704402665288,-599.93,0.00033424,2]
[310217007,1704402665299,-616.54,0.00033424,2]
[310217008,1704402665309,-500.0,0.00033424,2]
[310217009,1704402665320,-1525.72,0.00033424,2]
[310217010,1704402665329,-613.63,0.00033424,2]
[310217011,1704402665339,-637.93,0.00033424,2]
[310217012,1704402665349,-500.0,0.00033424,2]
[310217013,1704402665359,-532.62152616,0.00033424,2]
[310217014,1704402665369,-500.0,0.00033424,2]
[310217015,1704402665379,-500.0,0.00033424,2]
[310217016,1704402665389,-500.0,0.00033424,2]
[310217017,1704402665398,-500.0,0.00033424,2]
[310217018,1704402665411,-878.05,0.00033424,2]
[310217019,1704402665420,-500.0,0.00033424,2]
[310217020,1704402665588,-500.0,0.00033424,2]
[310217021,1704402665599,-500.0,0.00033424,2]
[310217022,1704402665608,-902.92,0.00033424,2]
[310217023,1704402665618,-500.0,0.00033424,2]
[310217024,1704402665628,-500.0,0.00033424,2]
[310217025,1704402665637,-500.0,0.00033424,2]
[310217026,1704402665647,-500.0,0.00033424,2]
[310217027,1704402665657,-500.0,0.00033424,2]
[310217028,1704402665666,-500.0,0.00033424,2]
[310217029,1704402665676,-589.16,0.00033424,2]
[310217030,1704402665685,-500.0,0.00033424,2]
[310217031,1704402665695,-500.0,0.00033424,2]
[310217032,1704402665705,-500.0,0.00033424,2]
[310217033,1704402665715,-500.0,0.00033424,2]
[310217034,1704402665725,-500.0,0.00033424,2]
[310217035,1704402665735,-984.56,0.00033424,2]
[310217036,1704402665746,-500.0,0.00033424,2]
[310217037,1704402665756,-543.08976959,0.00033424,2]
[310217038,1704402665766,-563.07,0.00033424,2]
[310217039,1704402665775,-500.0,0.00033424,2]
[310217040,1704402665785,-500.0,0.00033424,2]
[310217041,1704402665794,-2695.69,0.00033424,2]
[310217042,1704402665803,-786.61,0.00033424,2]
[310217043,1704402665812,-500.0,0.00033424,2]
[310217044,1704402665822,-1449.26,0.00033424,2]
[310217045,1704402665831,-500.0,0.00033424,2]
[310217046,1704402665840,-500.0,0.00033424,2]
[310217047,1704402665849,-6403.69,0.00033424,2]
[310217048,1704402665860,-500.0,0.00033424,2]
[310217049,1704402665869,-500.0,0.00033424,2]
[310217050,1704402665878,-565.56,0.00033424,2]
[310217051,1704402665888,-573.87,0.00033424,2]
[310217052,1704402665897,-500.0,0.00033424,2]
[310217053,1704402665906,-500.0,0.00033424,2]
[310217054,1704402665916,-500.0,0.00033424,2]
[310217055,1704402665927,-500.0,0.00033424,2]
[310217056,1704402665936,-750.62,0.00033424,2]
[310217057,1704402665947,-1503.12,0.00033424,2]
[310217058,1704402665956,-500.0,0.00033424,2]
[310217059,1704402665966,-500.0,0.00033424,2]
[310217060,1704402665975,-500.0,0.00033424,2]
[310217061,1704402665984,-515.26,0.00033424,2]
[310217062,1704402665993,-500.0,0.00033424,2]
[310217063,1704402666002,-500.0,0.00033424,2]
[310217064,1704402666012,-500.0,0.00033424,2]
[310217065,1704402666021,-500.0,0.00033424,2]
[310217066,1704402666030,-1352.57,0.00033424,2]
[310217067,1704402666041,-500.0,0.00033424,2]
[310217068,1704402666050,-500.0,0.00033424,2]
[310217069,1704402666059,-4498.58,0.00033424,2]
[310217070,1704402666069,-500.0,0.00033424,2]
[310217071,1704402666078,-1460.37,0.00033424,2]
[310217072,1704402666087,-647.5,0.00033424,2]
[310217073,1704402666097,-500.0,0.00033424,2]
[310217074,1704402666106,-500.0,0.00033424,2]
[310217075,1704402666116,-500.0,0.00033424,2]
[310217076,1704402666127,-500.0,0.00033424,2]
[310217077,1704402666136,-500.0,0.00033424,2]
[310217078,1704402666146,-895.41,0.00033424,2]
[310217079,1704402666155,-500.0,0.00033424,2]
[310217080,1704402666165,-500.0,0.00033424,2]
[310217081,1704402666175,-500.0,0.00033424,2]
[310217082,1704402666184,-500.0,0.00033424,2]
[310217083,1704402666194,-500.0,0.00033424,2]
[310217084,1704402666203,-500.0,0.00033424,2]
[310217085,1704402666214,-761.85,0.00033424,2]
[310217086,1704402666224,-500.0,0.00033424,2]
[310217087,1704402666234,-500.0,0.00033424,2]
[310217088,1704402666244,-500.0,0.00033424,2]
[310217089,1704402666254,-500.0,0.00033424,2]
[310217090,1704402666264,-2111.24,0.00033424,2]
[310217091,1704402666274,-500.0,0.00033424,2]
[310217092,1704402666284,-1731.46,0.00033424,2]
[310217093,1704402666294,-500.0,0.00033424,2]
[310217094,1704402666303,-928.81,0.00033424,2]
[310217095,1704402666313,-500.0,0.00033424,2]
[310217096,1704402666322,-500.0,0.00033424,2]
[310217097,1704402666332,-1123.24,0.00033424,2]
[310217098,1704402666342,-1937.57,0.00033424,2]
[310217099,1704402666351,-500.0,0.00033424,2]
[310217100,1704402666362,-550.84,0.00033424,2]
[310217101,1704402666371,-500.0,0.00033424,2]
[310217102,1704402666382,-500.0,0.00033424,2]
[310217103,1704402666391,-500.0,0.00033424,2]
[310217104,1704402666401,-500.0,0.00033424,2]
[310217105,1704402666410,-562.85405962,0.00033424,2]
[310217106,1704402666420,-500.0,0.00033424,2]
[310217107,1704402666429,-504.38,0.00033424,2]
[310217108,1704402666438,-516.7696764,0.00033424,2]
[310217109,1704402666448,-1072.15,0.00033424,2]
[310217110,1704402666457,-729.82,0.00033424,2]
[310217111,1704402666467,-500.0,0.00033424,2]
[310217112,1704402666476,-500.0,0.00033424,2]
[310217113,1704402666486,-500.0,0.00033424,2]
[310217114,1704402666496,-500.0,0.00033424,2]
[310217115,1704402666505,-500.0,0.00033424,2]
[310217116,1704402666514,-500.0,0.00033424,2]
[310217117,1704402666524,-2257.92,0.00033424,2]
[310217118,1704402666534,-500.0,0.00033424,2]
[310217119,1704402666543,-588.0,0.00033424,2]
[310217120,1704402666552,-500.0,0.00033424,2]
[310217121,1704402666562,-500.0,0.00033424,2]
[310217122,1704402666571,-1167.4,0.00033424,2]
[310217123,1704402666581,-831.43,0.00033424,2]
[310217124,1704402666591,-500.0,0.00033424,2]
[310217125,1704402666600,-1414.25,0.00033424,2]
[310217126,1704402666610,-1040.38,0.00033424,2]
[310217127,1704402666619,-500.0,0.00033424,2]
[310217128,1704402666629,-500.0,0.00033424,2]
[310217129,1704402666639,-828.1,0.00033424,2]
[310217130,1704402666648,-500.0,0.00033424,2]
[310217131,1704402666658,-500.0,0.00033424,2]
[310217132,1704402666668,-500.0,0.00033424,2]
[310217133,1704402666677,-500.0,0.00033424,2]
[310217134,1704402666687,-500.0,0.00033424,2]
[310217135,1704402666697,-500.0,0.00033424,2]
[310217136,1704402666707,-500.0,0.00033424,2]
[310217137,1704402666716,-500.0,0.00033424,2]
[310217138,1704402666725,-500.0,0.00033424,2]
[310217139,1704402666735,-678.15,0.00033424,2]
[310217140,1704402666745,-500.0,0.00033424,2]
[310217141,1704402666756,-500.0,0.00033424,2]
[310217142,1704402666765,-500.0,0.00033424,2]
[310217143,1704402666775,-500.0,0.00033424,2]
[310217144,1704402666785,-275.0,0.00033438,7]
[310217145,1704402666795,-1218.30271065,0.00033438,7]
[310217146,1704402666804,-244.51832317,0.00033438,7]
[310217147,1704402666813,-185.01923082,0.00033438,7]
[310217148,1704402666823,-8529.11873312,0.00033442,2]
[310217149,1704402666832,-661.53,0.00033542,2]
[310217150,1704402666843,-153.7,0.000336,2]
[310217151,1704402666854,-153.7,0.000336,2]
[310217152,1704402666865,-153.7,0.000336,2]
[310217153,1704402666876,-153.7,0.000336,2]
[310217154,1704402666886,-153.7,0.000336,2]
[310217155,1704402666895,-155.44,0.00033655,2]
[310217156,1704402666904,-150.0,0.00033673,2]
[310217157,1704402666913,-150.0,0.00033695,2]
[310217158,1704402666922,-500.0,0.00033697,2]
[310217159,1704402666931,-500.0,0.00033698,2]
[310217160,1704402666941,-500.0,0.00033698,2]
[310217161,1704402666950,-500.0,0.00033698,2]
[310217162,1704402666962,-500.0,0.00033698,2]
[310217163,1704402666971,-500.0,0.00033698,2]
[310217164,1704402666980,-500.0,0.00033698,2]
[310217165,1704402666989,-500.0,0.00033698,2]
[310217166,1704402666998,-500.0,0.00033698,2]
[310217167,1704402667007,-1000.0,0.00033698,2]
[310217168,1704402667017,-500.0,0.00033698,2]
[310217169,1704402667027,-500.0,0.00033698,2]
[310217170,1704402667036,-500.0,0.00033698,2]
[310217171,1704402667046,-500.0,0.00033698,2]
[310217172,1704402667055,-500.0,0.00033698,2]
[310217173,1704402667064,-500.0,0.00033698,2]
[310217174,1704402667084,-500.0,0.00033698,2]
[310217175,1704402667095,-500.0,0.00033698,2]
[310217176,1704402667104,-500.0,0.00033698,2]
[310217177,1704402667114,-500.0,0.00033698,2]
[310217178,1704402667123,-554.75,0.00033698,2]
[310217179,1704402667133,-500.0,0.00033698,2]
[310217180,1704402667142,-500.0,0.00033698,2]
[310217181,1704402667151,-500.0,0.00033698,2]
[310217182,1704402667161,-500.0,0.00033698,2]
[310217183,1704402667170,-500.0,0.00033698,2]
[310217184,1704402667180,-500.0,0.00033698,2]
[310217185,1704402667189,-500.0,0.00033698,2]
[310217186,1704402667199,-500.0,0.00033698,2]
[310217187,1704402667209,-286.56048413,0.00033698,2]
[310217188,1704402667220,-500.0,0.00033698,2]
[310217189,1704402667230,-236.65878527,0.00033698,2]
[310217190,1704402667240,-500.0,0.00033698,2]
[310217191,1704402667250,-500.0,0.00033698,2]
[310217192,1704402667260,-509.18668929,0.00033698,2]
[310217193,1704402667270,-500.0,0.00033698,2]
[310217194,1704402667280,-500.0,0.00033698,2]
[310217195,1704402667290,-500.0,0.00033698,2]
[310217196,1704402667299,-609.54237732,0.00033698,2]
[310217197,1704402667308,-500.0,0.00033698,2]
[310217198,1704402667318,-500.0,0.00033698,2]
[310217199,1704402667328,-500.0,0.00033698,2]
[310217200,1704402667337,-500.0,0.00033698,2]
[310217201,1704402667347,-500.0,0.00033698,2]
[310217202,1704402667356,-500.0,0.00033698,2]
[310217203,1704402667366,-500.0,0.00033698,2]
[310217204,1704402667376,-500.0,0.00033698,2]
[310217205,1704402667385,-500.0,0.00033698,2]
[310217206,1704402667397,-500.0,0.00033698,2]
[310217207,1704402667407,-500.0,0.00033698,2]
[310217208,1704402667416,-500.0,0.00033698,2]
[310217209,1704402667426,-500.0,0.00033698,2]
[310217210,1704402667435,-500.0,0.00033698,2]
[310217211,1704402667447,-633.3112265,0.00033698,2]
[310217212,1704402667457,-500.0,0.00033698,2]
[310217213,1704402667468,-500.0,0.00033698,2]
[310217214,1704402667479,-500.0,0.00033698,2]
[310217215,1704402667488,-500.0,0.00033698,2]
[310217216,1704402667498,-500.0,0.00033698,2]
[310217217,1704402667507,-500.0,0.00033698,2]
[310217218,1704402667517,-500.0,0.00033698,2]
[310217219,1704402667527,-500.0,0.00033698,2]
[310217220,1704402667536,-500.0,0.00033698,2]
[310217221,1704402667546,-500.0,0.00033698,2]
[310217222,1704402667556,-500.0,0.00033698,2]
[310217223,1704402667566,-500.0,0.00033698,2]
[310217224,1704402667576,-500.0,0.00033698,2]
[310217225,1704402667589,-500.0,0.00033698,2]
[310217226,1704402667599,-500.0,0.00033698,2]